fUST/lending_fUST_20250724
["ID","MTS","AMOUNT","RATE_DAILY","PERIOD"]
[374510577,1753331452355,-269.16,0.00020821,2]
[374510578,1753331452365,-151.0,0.00020821,2]
[374510579,1753331452449,-460.0,0.00020821,2]
[374510580,1753331452458,-151.0,0.00020821,2]
[374510581,1753331452468,-1363.71,0.00020821,2]
[374510582,1753331452478,-741.54,0.00020821,2]
[374510583,1753331452487,-460.0,0.00020821,2]
[374510584,1753331452496,-579.4,0.00020821,2]
[374510585,1753331452505,-1081.58,0.00020821,2]
[374510586,1753331452515,-460.0,0.00020821,2]
[374510587,1753331452524,-1334.3,0.00020821,2]
[374510588,1753331452533,-151.0,0.00020822,2]
[374510589,1753331452542,-151.0,0.00020822,2]
[374510590,1753331452551,-956.0,0.00020822,2]
[374510591,1753331452561,-151.0,0.00020822,2]
[374510592,1753331452570,-500.0,0.00020822,2]
[374510593,1753331452580,-151.0,0.00020822,2]
[374510594,1753331452589,-171.03322,0.00020822,2]
[374510595,1753331452599,-171.03322,0.00020822,2]
[374510596,1753331452608,-896.0,0.00020842,2]
[374510597,1753331452617,-4317.0,0.00020844,2]
[374510598,1753331452627,-4317.0,0.00020868,2]
[374510599,1753331452637,-2363.86,0.00020886,2]
[374510600,1753331452647,-1680.0,0.0002089,2]
[374510601,1753331452656,-500.0,0.00020894,2]
[374510602,1753331452665,-541.28418966,0.00020934,4]
[374510603,1753331452675,-303.97371381,0.00020934,2]
[374510604,1753331452685,-501.9115615,0.00020934,2]
[374510605,1753331452694,-501.35320571,0.00020934,2]
[374510606,1753331452703,-505.31633134,0.00020934,2]
[374510607,1753331452713,-500.0,0.00020942,2]
[374510608,1753331452723,-500.84556217,0.00020942,2]
[374510609,1753331452733,-502.27046646,0.00020942,2]
[374510610,1753331452743,-503.69774336,0.00020942,2]
[374510611,1753331452754,-350.91183162,0.00020942,2]
[374510612,1753331452765,-503.9146471,0.00020942,2]
[374510613,1753331452775,-500.62516564,0.00020942,2]
[374510614,1753331452786,-507.31347535,0.00020942,2]
[374510615,1753331452796,-501.90631083,0.00020942,2]
[374510616,1753331452806,-262.3418851,0.00020955,2]
[374510617,1753331452815,-501.22610387,0.00020955,2]
[374510618,1753331452825,-501.47596922,0.00020955,2]
[374510619,1753331452835,-503.78322418,0.00020955,2]
[374510620,1753331452844,-500.5616104,0.00020955,2]
[374510621,1753331452855,-500.0,0.00020955,2]
[374510622,1753331452864,-501.12134955,0.00020955,2]
[374510623,1753331452875,-503.16884132,0.00020955,2]
[374510624,1753331452885,-501.53221293,0.00020955,2]
[374510625,1753331452894,-503.40377634,0.00020955,2]
[374510626,1753331452905,-500.02560001,0.00020955,2]
[374510627,1753331452915,-501.40124512,0.00020955,2]
[374510628,1753331452925,-500.0,0.00020955,2]
[374510629,1753331452934,-503.62918997,0.00020955,2]
[374510630,1753331452944,-501.76019634,0.00020955,2]
[374510631,1753331452955,-501.47677661,0.00020955,2]
[374510632,1753331452965,-500.0,0.00020955,2]
[374510633,1753331452975,-500.64004016,0.0002098,2]
[374510634,1753331452984,-500.66344089,0.0002098,2]
[374510635,1753331452994,-501.22601622,0.0002098,2]
[374510636,1753331453003,-501.13471573,0.0002098,2]
[374510637,1753331453013,-11364.45173901,0.00020984,2]
[374510638,1753331453022,-219.0,0.00020988,2]
[374510639,1753331453032,-150.0,0.00020993,2]
[374510640,1753331453042,-163.0,0.00021,3]
[374510641,1753331453051,-163.0,0.00021,4]
[374510642,1753331453060,-3907.2,0.00021007,4]
[374510643,1753331453070,-375.003382,0.00021008,2]
[374510644,1753331453080,-375.003382,0.00021008,2]
[374510645,1753331453094,-170.237866,0.00021008,2]
[374510646,1753331453114,-170.237866,0.00021008,2]
[374510647,1753331453128,-500.0,0.0002104,2]
[374510648,1753331453147,-4000.0,0.00021082,3]
[374510649,1753331453164,-156.090994,0.00021095,2]
[374510650,1753331453182,-151.0,0.00021095,2]
[374510651,1753331453198,-151.0,0.00021095,2]
[374510652,1753331453213,-151.0,0.00021095,2]
[374510653,1753331453231,-151.0,0.00021095,2]
[374510654,1753331453245,-152.827064,0.00021095,2]
[374510655,1753331453259,-152.827064,0.00021095,2]
[374510656,1753331453277,-151.0,0.00021095,2]
[374510657,1753331453296,-172.226814,0.00021095,2]
[374510658,1753331453312,-172.226814,0.00021095,2]
[374510659,1753331453324,-549.4941977,0.00021095,2]
[374510660,1753331453341,-460.0,0.00021095,2]
[374510661,1753331453356,-460.0,0.00021095,2]
[374510662,1753331453370,-460.0,0.00021095,2]
[374510663,1753331453385,-151.0,0.00021095,2]
[374510664,1753331453397,-460.0,0.00021095,2]
[374510665,1753331453412,-151.0,0.00021095,2]
[374510666,1753331453426,-460.0,0.00021095,2]
[374510667,1753331453440,-460.0,0.00021095,2]
[374510668,1753331453453,-460.0,0.00021095,2]
[374510669,1753331453467,-151.0,0.00021095,2]
[374510670,1753331453480,-151.0,0.00021095,2]
[374510671,1753331453494,-178.48,0.00021095,2]
[374510672,1753331453508,-216.378143,0.00021095,2]
[374510673,1753331453520,-357.52,0.00021095,2]
[374510674,1753331453534,-186.366261,0.00021095,2]
[374510675,1753331453547,-186.366261,0.00021095,2]
[374510676,1753331453559,-151.0,0.00021095,2]
[374510677,1753331453572,-460.0,0.00021095,2]
[374510678,1753331453588,-1464.263723,0.00021095,2]
[374510679,1753331453601,-1464.263723,0.00021095,2]
[374510680,1753331453616,-460.0,0.00021095,2]
[374510681,1753331453629,-151.0,0.00021095,2]
[374510682,1753331453643,-151.0,0.00021095,2]
[374510683,1753331453656,-501.35,0.00021095,2]
[374510684,1753331453670,-460.0,0.00021095,2]
[374510685,1753331453684,-460.0,0.00021095,2]
[374510686,1753331453698,-537.73,0.00021095,2]
[374510687,1753331453713,-2952.57,0.00021095,2]
[374510688,1753331453727,-460.0,0.00021095,2]
[374510689,1753331453741,-546.2,0.00021095,2]
[374510690,1753331453754,-799.52,0.00021095,2]
[374510691,1753331453768,-460.0,0.00021095,2]
[374510692,1753331453781,-494.42,0.00021095,2]
[374510693,1753331453795,-151.0,0.00021095,2]
[374510694,1753331453808,-460.0,0.00021095,2]
[374510695,1753331453821,-754.29,0.00021095,2]
[374510696,1753331453837,-8334.09,0.00021095,2]
[374510697,1753331453851,-584.13,0.00021095,2]
[374510698,1753331453865,-2700.94,0.00021095,2]
[374510699,1753331453878,-460.0,0.00021095,2]
[374510700,1753331453888,-861.52,0.00021095,2]
[374510701,1753331453897,-460.0,0.00021095,2]
[374510702,1753331453907,-513.83,0.00021095,2]
[374510703,1753331453916,-460.0,0.00021095,2]
[374510704,1753331453925,-907.31,0.00021095,2]
[374510705,1753331453935,-460.0,0.00021095,2]
[374510706,1753331453947,-1735.3,0.00021095,2]
[374510707,1753331453957,-460.0,0.00021095,2]
[374510708,1753331453967,-460.0,0.00021095,2]
[374510709,1753331454123,-1347.15,0.00021095,2]
[374510710,1753331454134,-532.27,0.00021095,2]
[374510711,1753331454143,-916.07,0.00021095,2]
[374510712,1753331454152,-299.182357,0.00021095,2]
[374510713,1753331454162,-299.182357,0.00021095,2]
[374510714,1753331454171,-547.98,0.00021095,2]
[374510715,1753331454180,-460.0,0.00021095,2]
[374510716,1753331454189,-1480.78,0.00021095,2]
[374510717,1753331454198,-460.0,0.00021095,2]
[374510718,1753331454207,-463.23,0.00021095,2]
[374510719,1753331454216,-647.7,0.00021095,2]
[374510720,1753331454226,-201.48,0.00021095,2]
[374510721,1753331454235,-496.28,0.00021095,2]
[374510722,1753331454244,-460.0,0.00021095,2]
[374510723,1753331454253,-460.0,0.00021095,2]
[374510724,1753331454262,-1571.26,0.00021095,2]
[374510725,1753331454271,-2093.24,0.00021095,2]
[374510726,1753331454280,-541.99,0.00021095,2]
[374510727,1753331454290,-685.81,0.00021095,2]
[374510728,1753331454299,-460.0,0.00021095,2]
[374510729,1753331454309,-813.78,0.00021095,2]
[374510730,1753331454318,-459.92,0.00021095,2]
[374510731,1753331454328,-5915.49,0.00021095,2]
[374510732,1753331454337,-460.0,0.00021095,2]
[374510733,1753331454347,-1224.11,0.00021095,2]
[374510734,1753331454356,-668.73,0.00021095,2]
[374510735,1753331454365,-909.5,0.00021095,2]
[374510736,1753331454374,-151.0,0.00021095,2]
[374510737,1753331454383,-460.0,0.00021095,2]
[374510738,1753331454392,-171.179215,0.00021095,2]
[374510739,1753331454402,-1363.71,0.00021095,2]
[374510740,1753331454412,-741.54,0.00021095,2]
[374510741,1753331454421,-460.0,0.00021095,2]
[374510742,1753331454431,-579.4,0.00021095,2]
[374510743,1753331454440,-1081.58,0.00021095,2]
[374510744,1753331454449,-460.0,0.00021095,2]
[374510745,1753331454459,-1334.3,0.00021095,2]
[374510746,1753331454468,-151.0,0.00021096,2]
[374510747,1753331454477,-151.0,0.00021096,2]
[374510748,1753331454487,-956.0,0.00021096,2]
[374510749,1753331454496,-172.86551964,0.00021096,2]
[374510750,1753331454506,-500.0,0.00021096,2]
[374510751,1753331454515,-541.28418966,0.00021107,4]
[374510752,1753331454525,-2157.0,0.00021127,2]
[374510753,1753331454535,-969.382,0.00021127,2]
[374510754,1753331454545,-448.1,0.00021127,2]
[374510755,1753331454555,-421.197,0.00021127,2]
[374510756,1753331454564,-219.0,0.0002116,2]
[374510757,1753331454574,-5000.0,0.00021196,3]
[374510758,1753331454585,-6000.0,0.00021246,3]
[374510759,1753331454594,-541.28418966,0.00021279,5]
[374510760,1753331454603,-168.0,0.00021303,2]
[374510761,1753331454612,-4000.0,0.00021318,3]
[374510762,1753331454622,-3907.2,0.00021361,4]
[374510763,1753331454631,-211.133947,0.00021363,2]
[374510764,1753331454640,-211.133947,0.00021363,2]
[374510765,1753331454649,-200.46356229,0.00021368,2]
[374510766,1753331454659,-156.090994,0.00021369,2]
[374510767,1753331454668,-151.0,0.00021369,2]
[374510768,1753331454678,-151.0,0.00021369,2]
[374510769,1753331454687,-151.0,0.00021369,2]
[374510770,1753331454697,-151.0,0.00021369,2]
[374510771,1753331454707,-151.840791,0.00021369,2]
[374510772,1753331454716,-151.840791,0.00021369,2]
[374510773,1753331454727,-236.89438,0.00021369,2]
[374510774,1753331454736,-236.89438,0.00021369,2]
[374510775,1753331454746,-152.347134,0.00021369,2]
[374510776,1753331454755,-151.0,0.00021369,2]
[374510777,1753331454766,-151.0,0.00021369,2]
[374510778,1753331454775,-151.0,0.00021369,2]
[374510779,1753331454785,-151.0,0.00021369,2]
[374510780,1753331454795,-151.0,0.00021369,2]
[374510781,1753331454804,-151.0,0.00021369,2]
[374510782,1753331454814,-359.457806,0.00021369,2]
[374510783,1753331454823,-250.513679,0.00021369,2]
[374510784,1753331454833,-250.513679,0.00021369,2]
[374510785,1753331454842,-152.963059,0.00021369,2]
[374510786,1753331454851,-152.963059,0.00021369,2]
[374510787,1753331454861,-204.88,0.00021369,2]
[374510788,1753331454870,-580.56850091,0.00021369,2]
[374510789,1753331454880,-151.0,0.00021369,2]
[374510790,1753331454889,-460.0,0.00021369,2]
[374510791,1753331454899,-460.0,0.00021369,2]
[374510792,1753331454909,-460.0,0.00021369,2]
[374510793,1753331454918,-460.0,0.00021369,2]
[374510794,1753331454927,-460.0,0.00021369,2]
[374510795,1753331454937,-460.0,0.00021369,2]
[374510796,1753331454947,-501.35,0.00021369,2]
[374510797,1753331454959,-460.0,0.00021369,2]
[374510798,1753331454968,-460.0,0.00021369,2]
[374510799,1753331454977,-537.73,0.00021369,2]
[374510800,1753331454987,-151.0,0.00021369,2]
[374510801,1753331454996,-2952.57,0.00021369,2]
[374510802,1753331455006,-460.0,0.00021369,2]
[374510803,1753331455015,-546.2,0.00021369,2]
[374510804,1753331455024,-799.52,0.00021369,2]
[374510805,1753331455033,-460.0,0.00021369,2]
[374510806,1753331455043,-494.42,0.00021369,2]
[374510807,1753331455053,-151.0,0.00021369,2]
[374510808,1753331455062,-460.0,0.00021369,2]
[374510809,1753331455071,-375.003382,0.00021369,2]
[374510810,1753331455081,-754.29,0.00021369,2]
[374510811,1753331455091,-8334.09,0.00021369,2]
[374510812,1753331455099,-375.003382,0.00021369,2]
[374510813,1753331455109,-584.13,0.00021369,2]
[374510814,1753331455119,-2700.94,0.00021369,2]
[374510815,1753331455128,-460.0,0.00021369,2]
[374510816,1753331455138,-861.52,0.00021369,2]
[374510817,1753331455148,-460.0,0.00021369,2]
[374510818,1753331455158,-513.83,0.00021369,2]
[374510819,1753331455167,-474.79070396,0.00021369,2]
[374510820,1753331455176,-171.03322,0.00021369,2]
[374510821,1753331455185,-907.31,0.00021369,2]
[374510822,1753331455195,-460.0,0.00021369,2]
[374510823,1753331455205,-1735.3,0.00021369,2]
[374510824,1753331455214,-171.03322,0.00021369,2]
[374510825,1753331455225,-460.0,0.00021369,2]
[374510826,1753331455235,-460.0,0.00021369,2]
[374510827,1753331455245,-1347.15,0.00021369,2]
[374510828,1753331455254,-532.27,0.00021369,2]
[374510829,1753331455264,-916.07,0.00021369,2]
[374510830,1753331455273,-170.237866,0.00021369,2]
[374510831,1753331455282,-460.0,0.00021369,2]
[374510832,1753331455291,-547.98,0.00021369,2]
[374510833,1753331455299,-170.237866,0.00021369,2]
[374510834,1753331455308,-1480.78,0.00021369,2]
[374510835,1753331455317,-460.0,0.00021369,2]
[374510836,1753331455326,-463.23,0.00021369,2]
[374510837,1753331455337,-647.7,0.00021369,2]
[374510838,1753331455346,-496.28,0.00021369,2]
[374510839,1753331455354,-460.0,0.00021369,2]
[374510840,1753331455364,-460.0,0.00021369,2]
[374510841,1753331455373,-1571.26,0.00021369,2]
[374510842,1753331455382,-2093.24,0.00021369,2]
[374510843,1753331455391,-541.99,0.00021369,2]
[374510844,1753331455400,-685.81,0.00021369,2]
[374510845,1753331455409,-466.46983181,0.00021369,2]
[374510846,1753331455418,-813.78,0.00021369,2]
[374510847,1753331455428,-5915.49,0.00021369,2]
[374510848,1753331455437,-460.0,0.00021369,2]
[374510849,1753331455446,-1224.11,0.00021369,2]
[374510850,1753331455456,-668.73,0.00021369,2]
[374510851,1753331455465,-909.5,0.00021369,2]
[374510852,1753331455474,-460.0,0.00021369,2]
[374510853,1753331455484,-1363.71,0.00021369,2]
[374510854,1753331455493,-741.54,0.00021369,2]
[374510855,1753331455502,-460.0,0.00021369,2]
[374510856,1753331455512,-579.4,0.00021369,2]
[374510857,1753331455523,-1081.58,0.00021369,2]
[374510858,1753331455533,-219.0,0.00021369,2]
[374510859,1753331455542,-151.0,0.0002137,2]
[374510860,1753331455551,-195.14930414,0.0002137,2]
[374510861,1753331455561,-956.0,0.0002137,2]
[374510862,1753331455570,-500.0,0.0002137,2]
[374510863,1753331455581,-896.0,0.00021381,2]
[374510864,1753331455590,-896.0,0.00021383,2]
[374510865,1753331455599,-2000.0,0.00021388,3]
[374510866,1753331455609,-896.0,0.00021403,2]
[374510867,1753331455618,-541.28418966,0.00021452,5]
[374510868,1753331455628,-250.0,0.00021452,2]
[374510869,1753331455638,-175.952,0.00021452,2]
[374510870,1753331455647,-204.121,0.00021452,2]
[374510871,1753331455656,-151.531236,0.00021453,2]
[374510872,1753331455667,-151.0,0.00021453,2]
[374510873,1753331455676,-151.0,0.00021453,2]
[374510874,1753331455685,-503.76513554,0.0002149,2]
[374510875,1753331455695,-219.0,0.00021525,2]
[374510876,1753331455706,-150.18,0.00021535,2]
[374510877,1753331455715,-150.0,0.00021535,2]
[374510878,1753331455725,-150.0,0.00021535,2]
[374510879,1753331455734,-151.024,0.00021535,2]
[374510880,1753331455743,-152.827064,0.00021535,2]
[374510881,1753331455753,-152.827064,0.00021535,2]
[374510882,1753331455762,-151.0,0.00021535,2]
[374510883,1753331455772,-219.0,0.00021539,2]
[374510884,1753331455781,-500.0,0.00021586,2]
[374510885,1753331455791,-500.0,0.00021586,2]
[374510886,1753331455800,-364.80079199,0.00021586,2]
[374510887,1753331455809,-499.72709333,0.00021586,2]
[374510888,1753331455820,-501.05487282,0.00021586,2]
[374510889,1753331455831,-151.0,0.00021602,2]
[374510890,1753331455840,-151.0,0.00021602,2]
[374510891,1753331455850,-151.0,0.00021602,2]
[374510892,1753331455859,-151.0,0.00021602,2]
[374510893,1753331455870,-151.0,0.00021602,2]
[374510894,1753331455880,-151.0,0.00021602,2]
[374510895,1753331455889,-299.182357,0.00021602,2]
[374510896,1753331455899,-299.182357,0.00021602,2]
[374510897,1753331455909,-151.0,0.00021602,2]
[374510898,1753331455918,-219.0,0.00021603,2]
[374510899,1753331455927,-151.0,0.00021611,2]
[374510900,1753331455937,-501.10174009,0.00021611,2]
[374510901,1753331455948,-541.28418966,0.00021624,5]
[374510902,1753331455961,-896.0,0.00021643,2]
[374510903,1753331455970,-172.226814,0.00021643,2]
[374510904,1753331455980,-172.226814,0.00021643,2]
[374510905,1753331455990,-151.0,0.00021643,2]
[374510906,1753331455999,-151.0,0.00021643,2]
[374510907,1753331456008,-151.0,0.00021643,2]
[374510908,1753331456017,-151.0,0.00021643,2]
[374510909,1753331456029,-151.0,0.00021643,2]
[374510910,1753331456038,-211.133947,0.00021643,2]
[374510911,1753331456048,-211.133947,0.00021643,2]
[374510912,1753331456058,-151.0,0.00021643,2]
[374510913,1753331456067,-460.0,0.00021643,2]
[374510914,1753331456077,-460.0,0.00021643,2]
[374510915,1753331456087,-460.0,0.00021643,2]
[374510916,1753331456101,-460.0,0.00021643,2]
[374510917,1753331456110,-151.0,0.00021643,2]
[374510918,1753331456120,-151.0,0.00021643,2]
[374510919,1753331456130,-186.366261,0.00021643,2]
[374510920,1753331456140,-186.366261,0.00021643,2]
[374510921,1753331456149,-460.0,0.00021643,2]
[374510922,1753331456159,-1464.263723,0.00021643,2]
[374510923,1753331456169,-1464.263723,0.00021643,2]
[374510924,1753331456178,-460.0,0.00021643,2]
[374510925,1753331456188,-501.35,0.00021643,2]
[374510926,1753331456198,-460.0,0.00021643,2]
[374510927,1753331456208,-460.0,0.00021643,2]
[374510928,1753331456217,-537.73,0.00021643,2]
[374510929,1753331456227,-152.916961,0.00021643,2]
[374510930,1753331456237,-2952.57,0.00021643,2]
[374510931,1753331456248,-460.0,0.00021643,2]
[374510932,1753331456258,-546.2,0.00021643,2]
[374510933,1753331456267,-799.52,0.00021643,2]
[374510934,1753331456276,-460.0,0.00021643,2]
[374510935,1753331456286,-494.42,0.00021643,2]
[374510936,1753331456297,-460.0,0.00021643,2]
[374510937,1753331456307,-754.29,0.00021643,2]
[374510938,1753331456316,-8334.09,0.00021643,2]
[374510939,1753331456325,-584.13,0.00021643,2]
[374510940,1753331456335,-2700.94,0.00021643,2]
[374510941,1753331456345,-460.0,0.00021643,2]
[374510942,1753331456354,-861.52,0.00021643,2]
[374510943,1753331456364,-460.0,0.00021643,2]
[374510944,1753331456374,-513.83,0.00021643,2]
[374510945,1753331456383,-171.03322,0.00021643,2]
[374510946,1753331456392,-907.31,0.00021643,2]
[374510947,1753331456401,-460.0,0.00021643,2]
[374510948,1753331456411,-1735.3,0.00021643,2]
[374510949,1753331456505,-171.03322,0.00021643,2]
[374510950,1753331456530,-460.0,0.00021643,2]
[374510951,1753331456540,-460.0,0.00021643,2]
[374510952,1753331456550,-497.49368863,0.00021643,2]
[374510953,1753331456664,-849.65631137,0.00021643,2]
[374510954,1753331456674,-532.27,0.00021643,2]
[374510955,1753331456683,-916.07,0.00021643,2]
[374510956,1753331456694,-269.56,0.00021643,2]
[374510957,1753331456706,-547.98,0.00021643,2]
[374510958,1753331456715,-1480.78,0.00021643,2]
[374510959,1753331456725,-460.0,0.00021643,2]
[374510960,1753331456735,-463.23,0.00021643,2]
[374510961,1753331456744,-647.7,0.00021643,2]
[374510962,1753331456754,-496.28,0.00021643,2]
[374510963,1753331456764,-213.93542961,0.00021643,2]
[374510964,1753331456774,-460.0,0.00021643,2]
[374510965,1753331456783,-1571.26,0.00021643,2]
[374510966,1753331456792,-2093.24,0.00021643,2]
[374510967,1753331456802,-541.99,0.00021643,2]
[374510968,1753331456812,-685.81,0.00021643,2]
[374510969,1753331456821,-813.78,0.00021643,2]
[374510970,1753331456830,-5915.49,0.00021643,2]
[374510971,1753331456840,-460.0,0.00021643,2]
[374510972,1753331456850,-1224.11,0.00021643,2]
[374510973,1753331456860,-668.73,0.00021643,2]
[374510974,1753331456870,-909.5,0.00021643,2]
[374510975,1753331456879,-460.0,0.00021643,2]
[374510976,1753331456889,-1363.71,0.00021643,2]
[374510977,1753331456898,-741.54,0.00021643,2]
[374510978,1753331456908,-579.4,0.00021643,2]
[374510979,1753331456917,-460.0,0.00021643,2]
[374510980,1753331456926,-1081.58,0.00021643,2]
[374510981,1753331456936,-180.024933,0.00021644,2]
[374510982,1753331456947,-956.0,0.00021644,2]
[374510983,1753331456959,-500.0,0.00021644,2]
[374510984,1753331456969,-160.0,0.00021668,3]
[374510985,1753331456978,-500.0,0.00021678,2]
[374510986,1753331456987,-771.2615,0.000217,2]
[374510987,1753331456997,-151.0,0.000217,2]
[374510988,1753331457007,-153.346447,0.000217,2]
[374510989,1753331457016,-151.0,0.000217,2]
[374510990,1753331457025,-151.0,0.000217,2]
[374510991,1753331457036,-3907.2,0.00021714,4]
[374510992,1753331457046,-600.0,0.00021725,2]
[374510993,1753331457055,-859.2070339,0.00021794,2]
[374510994,1753331457065,-541.28418966,0.00021797,6]
[374510995,1753331457075,-219.0,0.00021822,2]
[374510996,1753331457086,-236.89438,0.0002188,2]
[374510997,1753331457095,-236.89438,0.0002188,2]
[374510998,1753331457105,-896.0,0.0002188,2]
[374510999,1753331457114,-219.0,0.00021894,2]
[374511000,1753331457124,-231.28369723,0.00021904,2]
[374511001,1753331457134,-156.090994,0.00021917,2]
[374511002,1753331457143,-151.0,0.00021917,2]
[374511003,1753331457153,-151.0,0.00021917,2]
[374511004,1753331457163,-179.759163,0.00021917,2]
[374511005,1753331457172,-151.0,0.00021917,2]
[374511006,1753331457181,-151.0,0.00021917,2]
[374511007,1753331457191,-151.0,0.00021917,2]
[374511008,1753331457200,-271.963078,0.00021917,2]
[374511009,1753331457209,-151.840791,0.00021917,2]
[374511010,1753331457218,-151.840791,0.00021917,2]
[374511011,1753331457233,-151.0,0.00021917,2]
[374511012,1753331457242,-151.0,0.00021917,2]
[374511013,1753331457251,-359.457806,0.00021917,2]
[374511014,1753331457261,-250.513679,0.00021917,2]
[374511015,1753331457270,-250.513679,0.00021917,2]
[374511016,1753331457279,-151.0,0.00021917,2]
[374511017,1753331457288,-472.97764411,0.00021917,2]
[374511018,1753331457298,-460.0,0.00021917,2]
[374511019,1753331457307,-460.0,0.00021917,2]
[374511020,1753331457316,-460.0,0.00021917,2]
[374511021,1753331457326,-186.366261,0.00021917,2]
[374511022,1753331457336,-186.366261,0.00021917,2]
[374511023,1753331457346,-460.0,0.00021917,2]
[374511024,1753331457355,-460.0,0.00021917,2]
[374511025,1753331457363,-501.35,0.00021917,2]
[374511026,1753331457372,-460.0,0.00021917,2]
[374511027,1753331457382,-460.0,0.00021917,2]
[374511028,1753331457392,-537.73,0.00021917,2]
[374511029,1753331457402,-2952.57,0.00021917,2]
[374511030,1753331457411,-460.0,0.00021917,2]
[374511031,1753331457421,-546.2,0.00021917,2]
[374511032,1753331457430,-799.52,0.00021917,2]
[374511033,1753331457440,-460.0,0.00021917,2]
[374511034,1753331457449,-494.42,0.00021917,2]
[374511035,1753331457459,-151.0,0.00021917,2]
[374511036,1753331457468,-460.0,0.00021917,2]
[374511037,1753331457477,-375.003382,0.00021917,2]
[374511038,1753331457487,-754.29,0.00021917,2]
[374511039,1753331457496,-375.003382,0.00021917,2]
[374511040,1753331457505,-584.13,0.00021917,2]
[374511041,1753331457515,-8334.09,0.00021917,2]
[374511042,1753331457524,-2700.94,0.00021917,2]
[374511043,1753331457534,-460.0,0.00021917,2]
[374511044,1753331457543,-861.52,0.00021917,2]
[374511045,1753331457554,-460.0,0.00021917,2]
[374511046,1753331457563,-513.83,0.00021917,2]
[374511047,1753331457572,-907.31,0.00021917,2]
[374511048,1753331457583,-460.0,0.00021917,2]
[374511049,1753331457592,-1735.3,0.00021917,2]
[374511050,1753331457601,-460.0,0.00021917,2]
[374511051,1753331457611,-460.0,0.00021917,2]
[374511052,1753331457620,-1347.15,0.00021917,2]
[374511053,1753331457630,-532.27,0.00021917,2]
[374511054,1753331457640,-916.07,0.00021917,2]
[374511055,1753331457650,-170.237866,0.00021917,2]
[374511056,1753331457659,-547.98,0.00021917,2]
[374511057,1753331457668,-170.237866,0.00021917,2]
[374511058,1753331457677,-1480.78,0.00021917,2]
[374511059,1753331457687,-460.0,0.00021917,2]
[374511060,1753331457697,-463.23,0.00021917,2]
[374511061,1753331457707,-647.7,0.00021917,2]
[374511062,1753331457716,-496.28,0.00021917,2]
[374511063,1753331457726,-460.0,0.00021917,2]
[374511064,1753331457735,-1571.26,0.00021917,2]
[374511065,1753331457745,-2093.24,0.00021917,2]
[374511066,1753331457758,-541.99,0.00021917,2]
[374511067,1753331457767,-685.81,0.00021917,2]
[374511068,1753331457777,-813.78,0.00021917,2]
[374511069,1753331457786,-5915.49,0.00021917,2]
[374511070,1753331457796,-460.0,0.00021917,2]
[374511071,1753331457806,-1224.11,0.00021917,2]
[374511072,1753331457816,-668.73,0.00021917,2]
[374511073,1753331457826,-909.5,0.00021917,2]
[374511074,1753331457836,-151.0,0.00021917,2]
[374511075,1753331457846,-1363.71,0.00021917,2]
[374511076,1753331457856,-165.12,0.00021917,2]